bitfinex-derivatives/quotes_BTCF0:USTF0_20241003
["timestamp","ask_amount","ask_price","bid_price","bid_amount"]
[1727928195587,0.22130151,61440.0,61439.0,0.170148]
[1727928197383,0.28640851,61440.0,61439.0,0.10504]
[1727928197683,0.33637021,61440.0,61439.0,0.10504]
[1727928198687,0.48216713,61440.0,61439.0,0.10504]
[1727928199681,0.33637021,61440.0,61439.0,0.11806]
[1727928200089,0.48248893,61440.0,61439.0,0.11806]
[1727928200388,0.33637021,61440.0,61439.0,0.11806]
[1727928200691,0.33637021,61440.0,61439.0,0.183168]
[1727928200884,0.14126321,61440.0,61439.0,0.183168]
[1727928201183,0.02,61440.0,61439.0,0.183168]
[1727928202777,0.02,61440.0,61438.0,0.05964]
[1727928202778,1.58908,61440.0,61438.0,0.05964]
[1727928202978,0.065115,61432.0,61431.0,0.0038]
[1727928203180,0.065115,61432.0,61423.0,0.0365]
[1727928203181,0.065122,61426.0,61423.0,0.0365]
[1727928203389,0.065122,61426.0,61423.0,0.0327]
[1727928204586,0.065122,61426.0,61425.0,0.01021187]
[1727928204889,0.066122,61426.0,61425.0,0.01021187]
[1727928205794,0.067122,61426.0,61425.0,0.01021187]
[1727928207279,0.002,61426.0,61425.0,0.07533487]
[1727928208181,0.065115,61433.0,61428.0,0.065119]
[1727928208386,0.065115,61433.0,61428.0,0.12953301]
[1727928209687,0.065115,61433.0,61429.0,0.01302]
[1727928209891,0.065115,61433.0,61429.0,0.07743401]
[1727928210092,0.195115,61432.0,61429.0,0.01302]
[1727928210686,0.065117,61431.0,61429.0,0.01302]
[1727928211589,0.13,61432.0,61429.0,0.01302]
[1727928211781,0.065118,61430.0,61429.0,0.01302]
[1727928211987,0.065118,61430.0,61429.0,0.01402]
[1727928216598,0.1049846,61430.0,61429.0,0.01402]
[1727928216798,0.15495756,61430.0,61429.0,0.01402]
[1727928216999,0.18385585,61430.0,61429.0,0.01402]
[1727928217196,0.36145042,61430.0,61429.0,0.01402]
[1727928217392,0.63241086,61430.0,61429.0,0.01402]
[1727928217586,0.57610921,61430.0,61429.0,0.01402]
[1727928217795,0.72225435,61430.0,61429.0,0.01402]
[1727928218191,0.57610921,61430.0,61429.0,0.01402]
[1727928218594,0.72231448,61430.0,61429.0,0.01402]
[1727928218800,0.57610921,61430.0,61429.0,0.01402]
[1727928219499,0.57611016,61430.0,61429.0,0.01402]
[1727928221396,0.57611016,61430.0,61429.0,0.02176]
[1727928223304,1.61449232,61430.0,61429.0,0.02176]
[1727928223505,0.065122,61426.0,61425.0,0.00244187]
[1727928223705,0.22657143,61426.0,61425.0,0.00244187]
[1727928224905,0.22757143,61426.0,61425.0,0.00344187]
[1727928225118,0.22757385,61426.0,61425.0,0.00344187]
[1727928225313,0.22857385,61426.0,61425.0,0.00344187]
[1727928227615,0.58937385,61426.0,61425.0,0.00344187]
[1727928228121,0.22857385,61426.0,61425.0,0.00344187]
[1727928228309,0.58937385,61426.0,61425.0,0.00344187]
[1727928228924,0.557922,61426.0,61425.0,0.00344187]
[1727928229221,0.002,61426.0,61425.0,0.36424187]
[1727928229407,0.0038,61434.0,61426.0,0.065122]
[1727928229718,0.198909,61438.0,61432.0,0.065114]
[1727928229912,0.198909,61438.0,61425.0,0.49512187]
[1727928229913,0.195109,61438.0,61433.0,0.065114]
[1727928230115,0.195109,61438.0,61434.0,0.0304]
[1727928230313,0.195109,61438.0,61434.0,0.095513]
[1727928230519,0.195109,61438.0,61435.0,0.0304]
[1727928231423,0.065111,61437.0,61435.0,0.09481401]
[1727928232512,0.071111,61437.0,61435.0,0.12531401]
[1727928232825,0.077111,61437.0,61435.0,0.12531401]
[1727928233729,0.065111,61436.0,61435.0,0.12531401]
[1727928235023,0.070111,61436.0,61435.0,0.12531401]
[1727928235223,0.076111,61436.0,61435.0,0.12531401]
[1727928235526,0.076111,61436.0,61435.0,0.19042601]
[1727928237114,0.076111,61436.0,61435.0,0.126012]
[1727928239317,0.076111,61436.0,61435.0,0.0609]
[1727928240533,0.0038,61444.0,61443.0,0.065104]
[1727928240718,0.065099,61448.0,61443.0,0.13]
[1727928241029,0.065102,61445.0,61441.0,0.065105]
[1727928241426,0.13,61445.0,61437.0,0.12952301]
[1727928241629,0.195108,61439.0,61437.0,0.065109]
[1727928242135,0.13,61442.0,61435.0,0.0609]
[1727928242314,0.13,61442.0,61439.0,0.065108]
[1727928242517,0.195105,61442.0,61439.0,0.065108]
[1727928243829,0.13,61442.0,61435.0,0.0609]
[1727928244028,0.002,61445.0,61435.0,0.126012]
[1727928244029,0.195109,61438.0,61435.0,0.126012]
[1727928244219,0.065111,61436.0,61435.0,0.0609]
[1727928245727,0.070111,61436.0,61435.0,0.0609]
[1727928246432,0.10155501,61436.0,61435.0,0.0609]
[1727928246933,0.03644401,61436.0,61435.0,0.126012]
[1727928247336,0.03444401,61436.0,61435.0,0.126012]
[1727928247637,0.003,61436.0,61435.0,0.126012]
[1727928247834,0.195109,61438.0,61435.0,0.126012]
[1727928248134,0.005,61436.0,61435.0,0.126012]
[1727928248433,0.195109,61438.0,61435.0,0.127012]
[1727928248636,0.195109,61438.0,61435.0,0.128012]
[1727928249035,0.195109,61438.0,61435.0,0.127012]
[1727928249237,0.260219,61438.0,61435.0,0.127012]
[1727928249536,0.195109,61438.0,61435.0,0.127012]
[1727928249730,0.06511,61437.0,61435.0,0.127012]
[1727928250033,0.06511,61437.0,61435.0,0.126012]
[1727928250236,0.195109,61438.0,61435.0,0.126012]
[1727928250629,0.196109,61438.0,61435.0,0.126012]
[1727928250935,0.065111,61436.0,61435.0,0.0609]
[1727928251132,0.065111,61436.0,61435.0,0.0304]
[1727928251437,0.065118,61430.0,61429.0,0.032]
[1727928253033,0.065118,61430.0,61428.0,0.065119]
[1727928253034,0.13,61431.0,61424.0,0.0644]
[1727928253234,0.005,61436.0,61424.0,0.0644]
[1727928253235,0.13,61426.0,61424.0,0.0644]
[1727928253435,0.065123,61425.0,61424.0,0.0312]
[1727928254737,0.066123,61425.0,61424.0,0.0352]
[1727928254934,0.067123,61425.0,61424.0,0.0412]
[1727928255236,0.067123,61425.0,61424.0,0.106324]
[1727928258529,0.002,61425.0,61424.0,0.106324]
[1727928258735,0.067123,61425.0,61424.0,0.106324]
[1727928259134,0.067123,61425.0,61424.0,0.17087581]
[1727928259442,0.067123,61425.0,61424.0,0.17087786]
[1727928259739,0.067123,61425.0,61424.0,0.106324]
[1727928262543,0.002,61425.0,61424.0,0.106324]
[1727928263239,0.002,61425.0,61424.0,0.18698081]
[1727928264242,0.002,61425.0,61424.0,0.106324]
[1727928264948,0.002,61425.0,61424.0,0.30650969]
[1727928266128,0.002,61425.0,61424.0,0.30648748]
[1727928267240,0.002,61425.0,61424.0,0.18698081]
[1727928267938,0.002,61425.0,61424.0,0.106324]
[1727928268534,0.002,61425.0,61424.0,0.18698081]
[1727928269036,0.002,61425.0,61424.0,0.106324]
[1727928276150,0.002,61425.0,61424.0,0.22606886]
[1727928276346,0.002,61425.0,61424.0,0.36880023]
[1727928276539,0.195122,61426.0,61425.0,0.065123]
[1727928276844,0.195122,61426.0,61425.0,0.18486786]
[1727928277143,0.13,61426.0,61425.0,0.18486786]
[1727928277350,0.13,61430.0,61429.0,0.065119]
[1727928277643,0.065114,61434.0,61429.0,0.11974486]
[1727928277847,0.065114,61434.0,61432.0,0.14603031]
[1727928278038,0.0947,61441.0,61433.0,0.20047506]
[1727928278039,0.0668,61441.0,61433.0,0.20047506]
[1727928278238,0.0668,61441.0,61438.0,0.065109]
[1727928278239,0.128106,61441.0,61438.0,0.065109]
[1727928278547,0.128106,61441.0,61438.0,0.078129]
[1727928278548,0.065106,61441.0,61438.0,0.078129]
[1727928279248,0.065108,61440.0,61438.0,0.078129]
[1727928279451,0.065108,61440.0,61438.0,0.14282671]
[1727928279640,0.065108,61440.0,61438.0,0.078129]
[1727928280650,0.074108,61440.0,61439.0,0.12981163]
[1727928281044,0.082108,61440.0,61439.0,0.12981163]
[1727928281346,0.017,61440.0,61439.0,0.065108]
[1727928281649,0.008,61440.0,61439.0,0.127408]
[1727928281850,0.019,61440.0,61439.0,0.259408]
[1727928282251,0.019,61440.0,61439.0,0.45949704]
[1727928282451,0.0689,61447.0,61446.0,0.065101]
[1727928282452,0.0038,61447.0,61446.0,0.065101]
[1727928282753,0.00244173,61451.0,61450.0,0.065096]
[1727928283547,0.00244173,61451.0,61450.0,0.1296708]
[1727928283952,0.01144173,61451.0,61450.0,0.1296708]
[1727928284146,0.01144173,61451.0,61450.0,0.09449722]
[1727928284147,0.04287681,61451.0,61450.0,0.09449722]
[1727928284656,0.05087681,61451.0,61450.0,0.09549722]
[1727928285647,0.01944173,61451.0,61450.0,0.09549722]
[1727928288141,0.01944173,61451.0,61450.0,0.066096]
[1727928292561,0.0038,61459.0,61458.0,0.065088]
[1727928292750,0.3608,61464.0,61463.0,0.065083]
[1727928293058,0.3608,61464.0,61463.0,0.061283]
[1727928293958,0.3648,61464.0,61463.0,0.062283]
[1727928294556,0.3648,61464.0,61463.0,0.063283]
[1727928294557,0.3758,61464.0,61463.0,0.063283]
[1727928295564,0.015,61464.0,61463.0,0.063283]
[1727928296959,0.00084,61484.0,61464.0,0.065081]
[1727928297167,0.065064,61481.0,61473.0,0.13]
[1727928297360,0.3608,61490.0,61478.0,0.13]
[1727928297564,0.3608,61490.0,61486.0,0.065058]
[1727928297765,0.13,61489.0,61486.0,0.065058]
[1727928298063,0.065057,61487.0,61475.0,0.1647]
[1727928298258,0.065057,61487.0,61482.0,0.065062]
[1727928298259,0.13,61486.0,61482.0,0.065062]
[1727928298658,0.13,61486.0,61475.0,0.1609]
[1727928298863,0.13,61486.0,61483.0,0.065061]
[1727928299256,0.07124813,61485.0,61483.0,0.065061]
[1727928299450,0.03141815,61484.0,61483.0,0.065061]
[1727928299665,0.03141806,61484.0,61483.0,0.065061]
[1727928300767,0.14614747,61484.0,61483.0,0.0444685]
[1727928300952,0.26732058,61484.0,61483.0,0.0454685]
[1727928301157,0.26732058,61484.0,61483.0,0.0464685]
[1727928301371,0.12117311,61484.0,61483.0,0.0464685]
[1727928301664,0.07124799,61484.0,61483.0,0.0454685]
[1727928301866,0.07124878,61485.0,61484.0,0.06506]
[1727928302571,0.07124905,61485.0,61484.0,0.06506]
[1727928303055,0.07124877,61485.0,61484.0,0.06506]
[1727928303262,0.06506,61484.0,61483.0,0.002]
[1727928303463,0.14614747,61484.0,61474.0,0.078081]
[1727928303658,0.13,61475.0,61474.0,0.078081]
[1727928303860,0.16141843,61475.0,61474.0,0.078081]
[1727928304768,0.22648843,61475.0,61474.0,0.01901]
[1727928305070,0.31625884,61475.0,61474.0,0.01901]
[1727928305260,0.31625884,61475.0,61474.0,0.002]
[1727928305461,0.26632404,61475.0,61474.0,0.002]
[1727928305764,0.26632404,61475.0,61466.0,0.065079]
[1727928305765,0.065077,61469.0,61466.0,0.065079]
[1727928305973,0.06508,61466.0,61463.0,0.3608]
[1727928306166,0.065082,61464.0,61461.0,0.065084]
[1727928306472,0.13,61463.0,61461.0,0.065084]
[1727928306655,0.13,61463.0,61460.0,0.00243977]
[1727928306861,0.065085,61461.0,61460.0,0.00243977]
[1727928308159,0.065085,61461.0,61460.0,0.00343977]
[1727928308367,0.13,61463.0,61460.0,0.00343977]
[1727928308575,0.13,61463.0,61461.0,0.065085]
[1727928310477,0.13,61463.0,61462.0,0.01301]
[1727928311071,0.132,61463.0,61462.0,0.01301]
[1727928311465,0.197083,61463.0,61462.0,0.01301]
[1727928311858,0.195083,61463.0,61462.0,0.01301]
[1727928312061,0.198083,61463.0,61462.0,0.01301]
[1727928313566,0.197083,61463.0,61462.0,0.01301]
[1727928313964,0.132,61463.0,61452.0,0.065094]
[1727928314169,0.195093,61453.0,61452.0,0.065094]
[1727928314567,0.065095,61452.0,61448.0,0.065098]
[1727928314771,0.065095,61452.0,61449.0,0.425897]
[1727928315378,0.065095,61452.0,61450.0,0.065096]
[1727928315672,0.065103,61445.0,61442.0,0.06658]
[1727928315874,0.065103,61445.0,61442.0,0.0657]
[1727928315875,0.13,61443.0,61442.0,0.0657]
[1727928316078,0.13,61443.0,61442.0,0.0324]
[1727928316375,0.065105,61442.0,61441.0,0.0316]
[1727928316573,0.13,61443.0,61439.0,0.06754932]
[1727928316574,0.065106,61441.0,61439.0,0.06754932]
[1727928317668,0.065106,61441.0,61440.0,0.01302]
[1727928319478,0.065096,61450.0,61447.0,0.065099]
[1727928319479,0.065099,61448.0,61447.0,0.065099]
[1727928320778,0.3608,61454.0,61453.0,0.065093]
[1727928322679,0.425892,61454.0,61453.0,0.065093]
[1727928322879,0.425892,61454.0,61453.0,0.066093]
[1727928323081,0.434892,61454.0,61453.0,0.002]
[1727928327978,0.434892,61454.0,61441.0,0.065105]
[1727928327979,0.065101,61446.0,61441.0,0.065105]
[1727928328181,0.065105,61442.0,61441.0,0.065105]
[1727928328382,0.195105,61442.0,61441.0,0.065105]
[1727928329782,0.065106,61441.0,61440.0,0.01302]
[1727928331384,0.065106,61441.0,61440.0,0.01502]
[1727928331582,0.065106,61441.0,61440.0,0.01802]
[1727928332187,0.065106,61441.0,61440.0,0.01502]
[1727928332889,0.065106,61441.0,61440.0,0.01302]
[1727928333092,0.066106,61441.0,61440.0,0.078127]
[1727928333590,0.067106,61441.0,61440.0,0.078127]
[1727928334092,0.065106,61441.0,61440.0,0.078127]
[1727928334290,0.067106,61441.0,61440.0,0.078127]
[1727928336098,0.067106,61441.0,61440.0,0.01302]
[1727928336393,0.09854727,61441.0,61440.0,0.01302]
[1727928336594,0.09854763,61441.0,61440.0,0.01302]
[1727928337777,0.09954763,61441.0,61440.0,0.01302]
[1727928340793,0.065112,61435.0,61434.0,0.00088]
[1727928341092,0.06512,61428.0,61426.0,0.00624148]
[1727928341282,0.19512,61428.0,61426.0,0.00244148]
[1727928341500,0.22656234,61428.0,61426.0,0.00244148]
[1727928342399,0.22656234,61428.0,61427.0,0.3708]
[1727928343385,0.22756234,61428.0,61427.0,0.3808]
[1727928344196,0.19612,61428.0,61427.0,0.3808]
[1727928344490,0.19612,61428.0,61427.0,0.02]
[1727928345687,0.22467181,61428.0,61427.0,0.06069]
[1727928345895,0.065125,61423.0,61422.0,0.04819673]
[1727928346194,0.065131,61417.0,61416.0,0.10959673]
[1727928346395,0.13,61417.0,61415.0,0.40899673]
[1727928346692,0.13,61417.0,61415.0,0.3608]
[1727928347091,0.116,61417.0,61415.0,0.3608]
[1727928347485,0.0038,61426.0,61413.0,0.04819673]
[1727928347486,0.065134,61414.0,61413.0,0.04819673]
[1727928347688,0.065137,61412.0,61410.0,0.10959673]
[1727928347994,0.051138,61411.0,61410.0,0.10959673]
[1727928348190,0.051138,61411.0,61410.0,0.0614]
[1727928348885,0.051138,61411.0,61410.0,0.0445]
[1727928349092,0.051138,61411.0,61410.0,0.014]
[1727928350392,0.052138,61411.0,61410.0,0.014]
[1727928350698,0.065142,61407.0,61406.0,0.00244244]
[1727928352905,0.066142,61407.0,61406.0,0.00244244]
[1727928354492,0.067142,61407.0,61406.0,0.00244244]
[1727928359421,0.067142,61407.0,61406.0,0.04315244]
[1727928362603,0.067142,61407.0,61406.0,0.07179355]
[1727928363004,0.002,61407.0,61406.0,0.07179355]
[1727928363203,0.002,61407.0,61406.0,0.13693655]
[1727928366400,0.13,61412.0,61410.0,0.065139]
[1727928366711,0.13,61412.0,61410.0,0.11353176]
[1727928367503,0.196137,61412.0,61411.0,0.04839276]
[1727928367706,0.196137,61412.0,61406.0,0.07179355]
[1727928367707,0.197137,61412.0,61410.0,0.04839276]
[1727928368010,0.197137,61412.0,61408.0,0.04839276]
[1727928368011,0.06514,61409.0,61408.0,0.04839276]
[1727928368209,0.19514,61409.0,61408.0,0.04839276]
[1727928368397,0.065141,61408.0,61406.0,0.04315244]
[1727928368597,0.065141,61408.0,61406.0,0.10767612]
[1727928369604,0.065141,61408.0,61407.0,0.06452368]
[1727928369808,0.066141,61408.0,61407.0,0.06452368]
[1727928370503,0.065142,61407.0,61406.0,0.04315244]
[1727928371817,0.065142,61407.0,61406.0,0.12335654]
[1727928372112,0.065142,61407.0,61406.0,0.18849954]
[1727928372412,0.065142,61407.0,61406.0,0.30807408]
[1727928372413,0.067142,61407.0,61406.0,0.30807408]
[1727928372611,0.067142,61407.0,61406.0,0.22786998]
[1727928374615,0.067142,61407.0,61406.0,0.10829544]
[1727928376211,0.002,61407.0,61406.0,0.10829544]
[1727928377414,0.068932,61416.0,61406.0,0.04315244]
[1727928377610,0.065132,61416.0,61415.0,0.065133]
[1727928378012,0.065129,61419.0,61415.0,0.065133]
[1727928378218,0.065129,61419.0,61412.0,0.032]
[1727928378219,0.065129,61419.0,61416.0,0.096332]
[1727928378417,0.49176001,61423.0,61416.0,0.096332]
[1727928378418,0.065126,61422.0,61420.0,0.065128]
[1727928378615,0.13,61427.0,61416.0,0.0312]
[1727928378912,0.48058747,61428.0,61423.0,0.065125]
[1727928378913,0.065122,61426.0,61423.0,0.065125]
[1727928380615,0.02935708,61432.0,61419.0,0.097329]
[1727928380616,0.001,61422.0,61419.0,0.097329]
[1727928380823,0.001,61422.0,61420.0,0.065128]
[1727928381011,0.001,61422.0,61420.0,0.105828]
[1727928381410,0.13,61424.0,61420.0,0.105828]
[1727928381615,0.13,61424.0,61420.0,0.08930451]
[1727928381819,0.065127,61421.0,61420.0,0.0407]
[1727928383127,0.066127,61421.0,61420.0,0.0407]
[1727928384012,0.067127,61421.0,61420.0,0.0407]
[1727928388632,0.09857802,61421.0,61420.0,0.0407]
[1727928389036,0.03345102,61421.0,61420.0,0.0407]
[1727928390841,0.03345102,61421.0,61420.0,0.105828]
[1727928394026,0.13844999,61421.0,61420.0,0.105828]
[1727928394234,0.09857802,61421.0,61420.0,0.105828]
[1727928394548,0.13844999,61421.0,61420.0,0.105828]
[1727928395048,0.13845071,61421.0,61420.0,0.105828]
[1727928395235,0.09857802,61421.0,61420.0,0.105828]
[1727928395434,0.13845055,61421.0,61420.0,0.105828]
[1727928395635,0.13845055,61421.0,61420.0,0.0407]
[1727928396636,0.067127,61421.0,61420.0,0.0407]
[1727928410242,0.427927,61421.0,61420.0,0.0407]
[1727928411539,0.54924023,61421.0,61420.0,0.0407]
[1727928412348,0.60764409,61421.0,61420.0,0.0407]
[1727928413948,0.54924023,61421.0,61420.0,0.0407]
[1727928414750,0.54923708,61421.0,61420.0,0.0407]
[1727928418551,0.427927,61421.0,61420.0,0.0718]
[1727928420754,0.427927,61421.0,61420.0,0.0407]
[1727928423264,0.45938151,61421.0,61420.0,0.0407]
[1727928424350,0.45838151,61421.0,61420.0,0.0407]
[1727928424759,0.45738151,61421.0,61420.0,0.0407]
[1727928424958,0.45738146,61421.0,61420.0,0.0407]
[1727928425458,0.47238146,61421.0,61420.0,0.0407]
[1727928425849,0.065132,61416.0,61415.0,0.0038]
[1727928426051,0.065132,61416.0,61413.0,0.0324]
[1727928426052,0.195132,61416.0,61413.0,0.0324]
[1727928426759,0.065134,61414.0,61413.0,0.0324]
[1727928427057,0.13646744,61414.0,61413.0,0.0324]
[1727928427262,0.18645139,61414.0,61413.0,0.0324]
[1727928428463,0.19645139,61414.0,61413.0,0.0324]
[1727928428765,0.20645139,61414.0,61413.0,0.0324]
[1727928430655,0.56725139,61414.0,61413.0,0.0324]
[1727928432164,0.62565724,61414.0,61413.0,0.0324]
[1727928432959,0.56725139,61414.0,61413.0,0.0324]
[1727928433165,0.14131739,61414.0,61413.0,0.097536]
[1727928433352,0.14131739,61414.0,61413.0,1.316016]
[1727928433353,0.03145577,61414.0,61413.0,1.316016]
[1727928433661,0.14644322,61416.0,61413.0,1.47504917]
[1727928433868,0.13992323,61416.0,61415.0,0.515933]
[1727928434064,0.13182324,61416.0,61415.0,1.23764429]
[1727928434272,0.0038,61423.0,61422.0,0.065126]
[1727928434563,0.0038,61439.0,61437.0,0.06511]
[1727928434758,0.065104,61443.0,61438.0,0.04848037]
[1727928435066,0.09,61442.0,61438.0,0.04848037]
[1727928435363,0.155105,61442.0,61438.0,0.04848037]
[1727928435557,0.065105,61442.0,61438.0,0.04848037]
[1727928435750,0.065105,61442.0,61437.0,0.06511]
[1727928436157,0.012,61439.0,61437.0,0.06511]
[1727928437562,0.012,61439.0,61438.0,0.065109]
[1727928437956,0.075105,61442.0,61438.0,0.065109]
[1727928438356,0.011,61439.0,61438.0,0.065109]
[1727928438965,0.022,61439.0,61438.0,0.067109]
[1727928440759,0.022,61439.0,61438.0,1.046189]
[1727928441165,0.022,61439.0,61438.0,1.646189]
[1727928441367,0.022,61439.0,61438.0,1.6946387]
[1727928441768,0.022,61439.0,61438.0,1.646189]
[1727928442861,0.022,61439.0,61438.0,1.67371925]
[1727928442862,0.01,61439.0,61438.0,1.67371925]
[1727928443170,0.019,61439.0,61438.0,1.67471925]
[1727928443567,0.009,61439.0,61438.0,1.67371925]
[1727928443766,0.018,61439.0,61438.0,1.67471925]
[1727928446076,0.018,61439.0,61438.0,1.71540925]
[1727928446274,0.0311,61454.0,61438.0,1.66030025]
[1727928446473,0.0311,61454.0,61453.0,0.065093]
[1727928447474,0.0351,61454.0,61453.0,0.065093]
[1727928447874,0.0471,61454.0,61453.0,0.066093]
[1727928448279,0.0571,61454.0,61453.0,0.002]
[1727928448579,0.0571,61454.0,61450.0,0.3608]
[1727928448780,0.195095,61451.0,61450.0,0.25785207]
[1727928448967,0.31632877,61451.0,61450.0,0.25785207]
[1727928449679,0.28489468,61451.0,61450.0,0.25785207]
[1727928450067,0.28489468,61451.0,61450.0,0.25885207]
[1727928450473,0.08979968,61451.0,61450.0,0.32394807]
[1727928450679,0.08979968,61453.0,61450.0,0.32394807]
[1727928450873,0.014,61451.0,61450.0,0.32494807]
[1727928451079,0.10379968,61451.0,61450.0,0.32494807]
[1727928451871,0.10380053,61451.0,61450.0,0.32494807]
[1727928452268,0.15926167,61451.0,61450.0,0.32494807]
[1727928452572,0.2490622,61451.0,61450.0,0.067096]
[1727928452774,0.10380053,61451.0,61450.0,0.067096]
[1727928453476,0.10180053,61451.0,61450.0,0.067096]
[1727928453884,0.1572697,61451.0,61450.0,0.067096]
[1727928454078,0.20721967,61451.0,61450.0,0.067096]
[1727928454277,0.10180053,61451.0,61450.0,0.066096]
[1727928454482,0.11080053,61451.0,61450.0,0.067096]
[1727928455284,0.06085056,61451.0,61450.0,0.067096]
[1727928456375,0.06085056,61451.0,61450.0,0.080106]
[1727928456883,0.021,61451.0,61450.0,0.080106]
[1727928458285,0.021,61451.0,61450.0,0.093696]
[1727928460081,0.055,61439.0,61415.0,0.06091135]
[1727928460303,0.28708214,61402.0,61388.0,0.07330619]
[1727928460593,0.29510335,61402.0,61388.0,0.00170619]
[1727928460797,0.28708214,61402.0,61388.0,0.00170619]
[1727928461091,0.28708214,61402.0,61395.0,0.13]
[1727928461492,0.065149,61401.0,61391.0,0.13]
[1727928461691,0.13,61396.0,61388.0,0.01070619]
[1727928461888,0.065153,61397.0,61388.0,0.01070619]
[1727928462082,0.065153,61397.0,61389.0,0.01303]
[1727928462986,0.065153,61397.0,61395.0,0.001]
[1727928463888,0.065153,61397.0,61389.0,0.01303]
[1727928463889,0.001,61396.0,61389.0,0.01303]
[1727928464095,0.065155,61395.0,61389.0,0.01303]
[1727928464486,0.065157,61393.0,61389.0,0.01303]
[1727928464985,0.065156,61394.0,61389.0,0.14303]
[1727928465194,0.065156,61394.0,61389.0,0.01303]
[1727928466180,0.001,61395.0,61389.0,0.01603]
[1727928466387,0.195159,61391.0,61389.0,0.01603]
[1727928466584,0.195159,61391.0,61389.0,0.01703]
[1727928466786,0.195159,61391.0,61389.0,0.01403]
[1727928466989,0.195159,61391.0,61389.0,0.01603]
[1727928467588,0.195159,61391.0,61389.0,0.01303]
[1727928467890,0.197159,61391.0,61389.0,0.01603]
[1727928468096,0.06516,61390.0,61389.0,0.01603]
[1727928469187,1.15384,61390.0,61381.0,0.0038]
[1727928469383,1.15384,61390.0,61378.0,0.0309]
[1727928469384,0.062172,61379.0,61378.0,0.0309]
[1727928469589,0.13,61382.0,61377.0,0.0058]
[1727928469590,0.065173,61378.0,61377.0,0.002]
[1727928469886,0.195173,61378.0,61377.0,0.002]
[1727928470391,0.192173,61378.0,61377.0,0.04273]
[1727928470793,0.190173,61378.0,61377.0,0.04273]
[1727928470991,0.190173,61378.0,61377.0,0.05576]
[1727928471198,0.190173,61378.0,61377.0,0.05376]
[1727928471495,0.191173,61378.0,61377.0,0.05576]
[1727928472195,0.913773,61378.0,61377.0,0.05576]
[1727928484301,0.192173,61378.0,61377.0,0.05576]
[1727928484500,0.913773,61378.0,61377.0,0.05576]
[1727928484698,0.7236,61378.0,61377.0,0.120934]
[1727928484999,0.7236,61378.0,61377.0,1.209694]
[1727928485395,0.7236,61378.0,61377.0,0.120934]
[1727928486904,0.66653833,61378.0,61377.0,0.120934]
[1727928487100,0.62578,61378.0,61377.0,0.120934]
[1727928489304,0.62578,61378.0,61377.0,0.23379483]
[1727928490400,0.62578,61378.0,61377.0,1.32255483]
[1727928490918,0.3608,61383.0,61377.0,1.45717296]
[1727928491099,0.2111,61383.0,61382.0,0.22711955]
[1727928491303,0.11229397,61383.0,61382.0,0.44252739]
[1727928491515,0.11229397,61383.0,61382.0,1.53124739]
[1727928492011,0.11229397,61383.0,61382.0,1.04252739]
[1727928492214,0.3608,61390.0,61389.0,0.065161]
[1727928492408,0.3608,61395.0,61394.0,0.065156]
[1727928492609,0.3608,61395.0,61394.0,0.17801683]
[1727928492805,0.3608,61395.0,61394.0,0.19104683]
[1727928492999,0.3608,61395.0,61394.0,0.19033847]
[1727928493522,0.00104001,61402.0,61401.0,0.065148]
[1727928493806,0.065141,61408.0,61406.0,0.065143]
[1727928494006,0.3608,61409.0,61406.0,0.065142]
[1727928494808,0.3608,61409.0,61407.0,0.065142]
[1727928495598,0.3718,61409.0,61407.0,0.065142]
[1727928495798,0.3718,61409.0,61408.0,0.065141]
[1727928496203,0.3608,61409.0,61408.0,0.105851]
[1727928496508,0.3728,61409.0,61408.0,0.105851]
[1727928496915,0.3848,61409.0,61408.0,0.105851]
[1727928497705,0.3728,61409.0,61408.0,0.105851]
[1727928497910,0.3858,61409.0,61408.0,0.105851]
[1727928498212,0.3868,61409.0,61408.0,0.105851]
[1727928501116,0.4197617,61409.0,61408.0,0.105851]
[1727928501317,0.0589617,61409.0,61408.0,0.105851]
[1727928504516,0.1241017,61409.0,61408.0,0.04071]
[1727928505707,0.1569017,61409.0,61408.0,0.04071]
[1727928506218,0.1967879,61409.0,61408.0,0.04071]
[1727928507017,0.065148,61401.0,61400.0,0.0038]
[1727928507318,0.2679959,61401.0,61392.0,0.0038]
[1727928507515,0.195155,61395.0,61391.0,0.065159]
[1727928507825,0.195155,61395.0,61392.0,0.065158]
[1727928508114,0.195155,61395.0,61394.0,0.078186]
[1727928511019,0.195155,61395.0,61394.0,0.01303]
[1727928518725,0.065155,61395.0,61394.0,0.01303]
[1727928519728,0.3608,61396.0,61394.0,0.01303]
[1727928519926,0.3608,61396.0,61395.0,0.097055]
[1727928520934,0.068945,61405.0,61402.0,0.065147]
[1727928521133,0.065145,61405.0,61402.0,0.065147]
[1727928521828,0.065145,61405.0,61403.0,0.01302]
[1727928522425,0.071145,61405.0,61403.0,0.01302]
[1727928522929,0.065145,61405.0,61403.0,0.01302]
[1727928523133,0.072145,61405.0,61403.0,0.01302]
[1727928523436,0.079145,61405.0,61403.0,0.01302]
[1727928524236,0.27453629,61405.0,61403.0,0.01302]
[1727928524534,0.07283066,61404.0,61403.0,0.01302]
[1727928525020,0.20239129,61404.0,61403.0,0.01302]
[1727928525427,0.07283066,61404.0,61403.0,0.01302]
[1727928525721,0.27497566,61404.0,61403.0,0.01302]
[1727928525925,0.40453629,61404.0,61403.0,0.01302]
[1727928526129,0.27497566,61404.0,61403.0,0.01302]
[1727928526327,0.32496832,61404.0,61403.0,0.01302]
[1727928526534,0.27497566,61404.0,61403.0,0.01302]
[1727928526934,0.3249681,61404.0,61403.0,0.05373]
[1727928528232,0.3329681,61404.0,61403.0,0.05373]
[1727928529332,0.47825297,61404.0,61403.0,0.05373]
[1727928529539,0.28297566,61404.0,61403.0,0.05373]